Cogmind - Beta 13 @@@ ROGUE MODE // 2024.04.06 @ 00:01:49 Player: Ashlemon Result: Destroyed by KS-4Z0(R) with Subdweller Shrapnel Launcher Performance ------------- Evolutions (0) 0 Regions Visited (3) 600 Robots Destroyed (17) 85 Value Destroyed (610) 610 Prototype IDs (0) 0 Alien Tech Used (0) 0 Bonus (-332) -332 TOTAL SCORE: 963 Bonus ------- Friendly Fire -332 Cogmind --------- Core Integrity 0/250 Matter 210/300 Energy 145/170 System Corruption 3% Temperature Cool (15) Movement Treading (240) Ox1 Location -10/Subcaves Parts ------- > --- POWER (1) -------- Makeshift Power Source > --- PROPULSION (2) --- Light Treads Light Treads > --- UTILITY (2) ------ High-capacity Storage Unit ECM Suite > --- WEAPON (2) ------- Beamcaster Beamcaster > --- INVENTORY (20) --- Light Angular Momentum Engine Light Treads Heat Sink Improved Heat Sink High-capacity Matter Pod (200) Subdweller Optics Signal Interpreter Terrain Scanner Targeting Computer Targeting Computer ECM Suite Scrap Shield Tractor Beam Beam Cannon Beam Cannon Heavy Battle Rifle Datajack Mining Claw Scrap Shield Fragment (9) Peak State ------------ > --- POWER ------------ Makeshift Power Source > --- PROPULSION ------- Light Treads Light Treads > --- UTILITY ---------- High-capacity Storage Unit ECM Suite > --- WEAPON ----------- Beamcaster Beamcaster > --- INVENTORY -------- Light Angular Momentum Engine Light Treads Heat Sink Improved Heat Sink High-capacity Matter Pod Subdweller Optics Signal Interpreter Terrain Scanner Targeting Computer Targeting Computer ECM Suite Scrap Shield Tractor Beam Beam Cannon Beam Cannon Heavy Battle Rifle Datajack Mining Claw Scrap Shield Fragment [Rating: 21] Favorites ----------- Power Light Ion Engine Engine Light Ion Engine Propulsion Light Treads Treads Light Treads Utility High-capacity Storage Unit Device ECM Suite Storage High-capacity Storage Unit Weapon Assault Rifle Energy Gun EM Pulse Gun Energy Cannon Beam Cannon Ballistic Gun Assault Rifle Launcher Grenade Launcher Slashing Weapon Mining Claw Build | -11 -10 -10 -10 ------- Run | Yrd Mat Min Sub Slots Evolved . | . . . . Power . | . . . . Propulsion . | . . . . Utility . | . . . . Weapon . | . . . . Parts Attached 29 | 6 2 9 12 Power 6 | 1 . 2 3 Engine 6 | 1 . 2 3 Core . | . . . . Reactor . | . . . . Propulsion 6 | 2 . 2 2 Treads 6 | 2 . 2 2 Leg . | . . . . Wheel . | . . . . Hover . | . . . . Flight . | . . . . Utility 3 | 1 2 . . Device 1 | . 1 . . Storage 2 | 1 1 . . Processor . | . . . . Hackware . | . . . . Protection . | . . . . Artifact . | . . . . Weapon 14 | 2 . 5 7 Energy Gun 4 | . . 2 2 Energy Cannon 2 | . . 2 . Ballistic Gun 4 | 2 . . 2 Ballistic Cannon . | . . . . Launcher 2 | . . 1 1 Special Weapon . | . . . . Impact Weapon . | . . . . Slashing Weapon 2 | . . . 2 Piercing Weapon . | . . . . Special Melee Weapon . | . . . . Unidentified Prototypes . | . . . . Corrupted Parts 1 | . . 1 . System Corruption 2 | . . 2 . Parts Lost 6 | . . 1 5 Power 3 | . . 1 2 Propulsion 2 | . . . 2 Utility . | . . . . Weapon 1 | . . . 1 Highest Loss Streak 5 | . . 1 5 To Critical Strikes 1 | . . . 1 Average Slot Usage (%) 97 | . 91 99 97 Engine 13 | . 14 13 12 Treads 27 | . 28 27 28 Device 12 | . 5 14 14 Storage 14 | . 14 14 14 Energy Gun 3 | . . 6 . Energy Cannon 9 | . . 12 9 Ballistic Gun 12 | . 28 8 8 Slashing Weapon 2 | . . . 8 Naked Turns . | . . . . Heaviest Build 57 | 14 54 51 57 Greatest Support 42 | 40 40 42 42 Greatest Overweight (x) 2 | . 1 2 1 Average Overweight (x) . | . . 1 1 Largest Inventory Capacity 20 | 8 20 20 20 Average Capacity 18 | 7 16 20 20 Most Carried 20 | 6 13 20 20 Average Carried 16 | 4 8 17 19 Final Capacity 20 | 8 20 20 20 Final Carried 20 | 6 13 20 20 Class Distribution -------------------- 100% | Mutant Dominant Class ---------------- Mutant | -10/Materials Mutant | -10/Mines Mutant | -10/Subcaves Resources | -11 -10 -10 -10 ----------- Run | Yrd Mat Min Sub Matter Collected 675 | 192 . 364 119 Remotely . | . . . . Salvage Created 431 | . . 124 307 Parts 28 | . . 6 22 Haulers Intercepted . | . . . . Recyclers Shooed . | . . . . Parts Field Recycled . | . . . . Retrieved Matter . | . . . . Parts Self-Destructed 9 | . . . 9 Prevented . | . . . . Kills | -11 -10 -10 -10 ------- Run | Yrd Mat Min Sub Combat Hostiles Destroyed 18 | . . 5 13 Guns 5 | . . 3 2 AOE 13 | . . 2 11 Classes Destroyed 5 | . . 2 3 Sentry 2 | . . 2 . Subdweller 13 | . . . 13 Assembled 3 | . . 3 . Thug 1 | . . . 1 Guerrilla 1 | . . . 1 Best Kill Streak 12 | . . 3 12 Combat Bots Only 12 | . . 3 12 Max Kills in Single Turn 4 | . . 1 4 Gunslinging . | . . . . Exploded 4 | . . 1 4 Melee . | . . . . Uniques/NPCs Destroyed . | . . . . Combat | -11 -10 -10 -10 -------- Run | Yrd Mat Min Sub Hostile Shots Fired 104 | . 21 31 52 Missed 32 | . 4 12 16 Damage Taken 1551 | . 221 373 957 Core 264 | . 56 62 146 Absorbed by Shields . | . . . . Core Remaining (%) 100 | 100 . . . Volleys Fired 27 | . . 12 15 Largest 2 | . . 2 2 Hottest 150 | . . 60 150 Shots Fired 52 | . . 24 28 Gun 42 | . . 22 20 Cannon 1 | . . . 1 Launcher 9 | . . 2 7 Special . | . . . . Kinetic 25 | . . 17 8 Thermal 13 | . . . 13 Explosive 9 | . . 2 7 Electromagnetic 5 | . . 5 . Robot Hit Streak 11 | . . 9 11 Robot Miss Streak 2 | . . 2 2 Penetration Max . | . . . . Secondary Targets 1 | . . . 1 Max Gunslinging Chain 1 | . . . 1 Shots Hit Robots 31 | . . 13 18 Core Hits 45 | . . 11 34 Critical Kills . | . . . . Critical Parts Destroyed . | . . . . Critical Strikes . | . . . . Melee Attacks 9 | . . . 9 Impact . | . . . . Slashing 9 | . . . 9 Piercing . | . . . . Sneak Attacks . | . . . . Combat Hostiles . | . . . . Follow-up Attacks . | . . . . Damage Inflicted 2152 | . . 279 1873 Guns 449 | . . 167 282 Cannons . | . . . . Explosions 1703 | . . 112 1591 Melee . | . . . . Ramming . | . . . . Kinetic 263 | . . 123 140 Thermal 142 | . . . 142 Explosive 1703 | . . 112 1591 Electromagnetic 44 | . . 44 . Impact . | . . . . Slashing . | . . . . Piercing . | . . . . Highest Corruption 3 | . . 3 3 Average Corruption 2 | . . 2 3 Corruption Purged . | . . . . Corruption Blocked . | . . . . Effects 21 | . . 11 10 Message Errors 4 | . . 2 2 Matter Fused 4 | . . 1 3 Heat Flow Errors 4 | . . 4 . Energy Discharges 3 | . . 1 2 Data Loss (minor) 2 | . . 1 1 Data Loss (major) 2 | . . 1 1 Alerts 2 | . . 1 1 Overload Shots . | . . . . Overflow Damage 16 | . . . 16 Projectiles . | . . . . Explosions 16 | . . . 16 Melee . | . . . . Knockbacks . | . . . . Impact . | . . . . Kinetic . | . . . . Secondary . | . . . . Self-Inflicted Damage 119 | . . 25 94 Shots 6 | . . 1 5 Rammed . | . . . . Targets Rammed . | . . . . Kicked . | . . . . Crushed . | . . . . Highest Temperature 217 | . . 217 90 Average Temperature 54 | . . 61 38 Received Heat Transfer 367 | . 129 136 102 Siege Activations . | . . . . Robots Corrupted . | . . . . Combat Hostiles . | . . . . Parts Fried . | . . . . Impact Corruptions . | . . . . Robots Melted . | . . . . Combat Hostiles . | . . . . Parts Melted . | . . . . Heat Transferred 259 | . . . 259 Parts Sabotaged . | . . . . Parts Stolen . | . . . . Parts Stripped . | . . . . Power Chain Reactions . | . . . . Alert | -11 -10 -10 -10 ------- Run | Yrd Mat Min Sub Peak Influence 55 | . 30 55 . Initial . | . . . . Average 16 | . 4 23 . Maximum Alert Level . | . . . . Low Security (%) 100 | 100 100 100 . Level 1 . | . . . . Level 2 . | . . . . Level 3 . | . . . . Level 4 . | . . . . Level 5 . | . . . . High Security . | . . . . Max Security . | . . . . Squads Dispatched 1 | . 1 . . Investigation 1 | . 1 . . Extermination . | . . . . Reinforcement . | . . . . Assault . | . . . . Garrison . | . . . . Intercept . | . . . . Searches Triggered . | . . . . Construction Impeded . | . . . . Haulers Reinforced . | . . . . Active Scanning Responses . | . . . . Cargo Convoy Interrupts . | . . . . Stealth | -11 -10 -10 -10 --------- Run | Yrd Mat Min Sub Distress Signals 1 | . . 1 . Communications Jammed . | . . . . Distress Signals . | . . . . Times Spotted 29 | . 6 8 15 Peak Tracking Total 12 | . 2 4 12 Tactical Retreats 1 | . . 1 . Traps | -11 -10 -10 -10 ------- Run | Yrd Mat Min Sub Traps Triggered 3 | . 1 2 . Indirectly . | . . . . Trap Hack Attempts . | . . . . Triggered . | . . . . Disarmed . | . . . . Reprogrammed . | . . . . Reused . | . . . . Traps Extracted . | . . . . Installed . | . . . . Triggered . | . . . . Machines | -11 -10 -10 -10 ---------- Run | Yrd Mat Min Sub Machines Disabled . | . . . . Max in Single Turn . | . . . . Machines Repaired . | . . . . Machines Dismantled . | . . . . Machines Sabotaged . | . . . . Overloaded Fab Kills . | . . . . Hacking | -11 -10 -10 -10 --------- Run | Yrd Mat Min Sub Machines Accessed 2 | . 1 1 . Terminals 1 | . 1 . . Fabricators . | . . . . Repair Stations . | . . . . Recycling Units . | . . . . Scanalyzers . | . . . . Garrison Access . | . . . . Total Hacks 2 | . 1 1 . Successful 2 | . 1 1 . Failed . | . . . . Catastrophic . | . . . . Database Lockouts . | . . . . Manual . | . . . . Terminals 1 | . 1 . . Fabricators . | . . . . Repair Stations . | . . . . Recycling Units . | . . . . Scanalyzers . | . . . . Garrison Access . | . . . . Terminal Hacks 2 | . 1 1 . Open Door 1 | . . 1 . Maintenance Status 1 | . 1 . . Fabricator Hacks . | . . . . Repair Station Hacks . | . . . . Recycling Unit Hacks . | . . . . Scanalyzer . | . . . . Garrison Access Hacks . | . . . . Unauthorized Hacks . | . . . . Terminals . | . . . . Fabricators . | . . . . Repair Stations . | . . . . Recycling Units . | . . . . Scanalyzers . | . . . . Garrison Access . | . . . . Data Cores Recovered . | . . . . Used . | . . . . Hacking Detections . | . . . . Full Trace Events . | . . . . Feedback Events . | . . . . Feedback Blocked . | . . . . Robot Schematics Acquired . | . . . . Robots Built . | . . . . Authchips . | . . . . Time . | . . . . Total Robot Build Rating . | . . . . Part Schematics Acquired . | . . . . Parts Built . | . . . . Authchips . | . . . . Time . | . . . . Total Part Build Rating . | . . . . Parts Repaired . | . . . . Time . | . . . . Parts Recycled . | . . . . Recycled Matter . | . . . . Retrieved Matter . | . . . . Retrieved Components . | . . . . Parts Scanalyzed . | . . . . Part Schematics Acquired . | . . . . Parts Damaged . | . . . . Bothacking | -11 -10 -10 -10 ------------ Run | Yrd Mat Min Sub Used RIF Installer . | . . . . Robots Hacked . | . . . . Non-combat . | . . . . Combat . | . . . . Robot Hacks Applied . | . . . . Relay Couplers Released . | . . . . Fabnet Peak Effective % . | . . . . Robots Rewired . | . . . . Allies Hacked . | . . . . Hacks Repelled . | . . . . Allies | -11 -10 -10 -10 -------- Run | Yrd Mat Min Sub Total Allies . | . . . . Largest Group . | . . . . Highest-Rated Group . | . . . . Highest-Rated Ally . | . . . . Total Orders . | . . . . Ally Attacks . | . . . . Total Damage . | . . . . Kills . | . . . . Allies Corrupted . | . . . . Allies Melted . | . . . . Intel | -11 -10 -10 -10 ------- Run | Yrd Mat Min Sub Robot Analysis Total . | . . . . Derelict Logs Recovered 1 | . . 1 . Drone Launches . | . . . . Drone Recoveries . | . . . . Exploration | -11 -10 -10 -10 ------------- Run | Yrd Mat Min Sub Turns Passed 2248 | 105 418 984 741 Spaces Moved 925 | 71 192 391 271 Core 23 | 23 . . . Treads 902 | 48 192 391 271 Legs . | . . . . Wheels . | . . . . Hover . | . . . . Flight . | . . . . Fastest Speed 50 | 50 160 232 232 Average Speed 221 | 124 210 233 236 Slowest Speed 320 | 160 240 320 240 Overloaded Moves . | . . . . Propulsion Burnouts . | . . . . Robots Hopped . | . . . . Cave-ins Triggered . | . . . . Exploration Rate (%) 26 | 5 25 62 13 Regions Visited 3 Branch Regions 2 Pre-discovered Areas 1 | . . . 1 Known Exits Taken . | . . . . Unknown Exits Taken 3 | 1 1 1 . Scrap Searched 1 | . . 1 . Spaces Dug 8 | . . 8 . Terrain Destroyed 48 | . . 15 33 Melee . | . . . . Projectile 5 | . . . 5 AOE 43 | . . 15 28 Terrain Rammed . | . . . . Walls Destroyed . | . . . . Machines Disabled . | . . . . Actions | -11 -10 -10 -10 --------- Run | Yrd Mat Min Sub Total 1064 | 87 209 439 329 Wait 3 | . . . 3 Move 922 | 70 191 390 271 Hop . | . . . . Pick Up 50 | 11 11 17 11 Fast Attach 7 | 1 1 4 1 Attach 13 | 5 1 2 5 Detach 2 | . 1 1 . Swap 9 | . . 3 6 Drop 22 | . 4 10 8 Fire 27 | . . 12 15 Melee 9 | . . . 9 Ram . | . . . . Kick . | . . . . Crush . | . . . . Escape Stasis . | . . . . Rewire . | . . . . Trap . | . . . . Miscellaneous . | . . . . Route ------- -11/Scrapyard -10/Materials -10/Mines (discovered 2 exits: Mat / [*Sub]) -10/Subcaves History --------- Turn | Location | Event 8 | -11/Scrapyard | Discovered new exit (range 14) 106 | -11/Scrapyard | Entered Materials 308 | -10/Materials | Build established: Mutant 493 | -10/Materials | Discovered new exit (range 13) 524 | -10/Materials | Entered Mines 525 | -10/Mines | Assembled infested the area 530 | -10/Mines | Assisted by a Guerilla fighting off Assembled 725 | -10/Mines | Met a Derelict who couldn't figure out how to use a Trap Extractor 1301 | -10/Mines | Identified exit to Materials 1475 | -10/Mines | Discovered new exit (range 10) 1508 | -10/Mines | Entered Subcaves 1674 | -10/Subcaves | Shifting Twisted Machinery released Sub. Machine Gun 1690 | -10/Subcaves | Shifting Twisted Machinery released Hvy. Battle Rifle 1821 | -10/Subcaves | Ambushed by swarm of Subdwellers 1821 | -10/Subcaves | Ambushed by Subdwellers from Twisted Machinery 1821 | -10/Subcaves | Ambushed by Subdwellers from Twisted Machinery 1821 | -10/Subcaves | Ambushed by Subdwellers from Twisted Machinery 1821 | -10/Subcaves | Ambushed by Subdwellers from Twisted Machinery 1828 | -10/Subcaves | Core integrity fell below 50% 1857 | -10/Subcaves | Lost 4 allies 1869 | -10/Subcaves | Destroyed 12 combat bots 1876 | -10/Subcaves | Lost 5 parts (2p2n1w) 2045 | -10/Subcaves | Learned location of Zion (-7) 2045 | -10/Subcaves | Met a Zionite searching for "candidates" 2141 | -10/Subcaves | Shifting Twisted Machinery released Mak. Power Source 2215 | -10/Subcaves | Ambushed by Subdweller buried in earth 2223 | -10/Subcaves | Core integrity fell below 20% 2249 | -10/Subcaves | Destroyed by KS-4Z0(R) with Subdweller Shrapnel Launcher Last Messages --------------- destroying it. Subatomizers dissect the Carbon-fiber Leg. The unstable cave ceiling collapses. System corrupted: Energy discharge (-58). The unstable cave ceiling collapses. 0K-E29(z): "Hey you! It's really dangerous down here, I feel that you could die at any moment. For your health and safety might I suggest a trip to Zion?" World map updated: -7/Zion. System corrupted: Matter fused (-6). Mak. Power Source falls loose from the Twisted Machinery. 0#V ,GUEXDRZI0 #E#4DK>8& BU Dropped Sub. Power Source. Acquired Mak. Power Source. System corrupted: Matter fused (-9). 44-AZL(R): "NAT20!" 44-AZL(R) destroyed. Switching to secondary target: KS-4Z0(R). Map ----- +----------------------------------------------------+ | ?????????????????????????????????????????# ## # | | ?????????????????????????????????????????# #?### | | ?????????????????????????????????????????# "#???? | | ???????????????????????????????????????### #???? | | ??????????????????????????????????????## ####? | | ??????????????????????????????????????#" #? | | ??????????????????????????????????????# #? | | ?????????????????? ???????????????????# ##"##? | | ?????????????????? ??????????????????## ""####?? | | ?????????????????? ?#?????????????????# " "### | | ??????????????????# ## ????????????????# " ! """ | | ?????????????????## ????????????????# "[ ] | | ?????????????????# ? ????????????????# * [ * [ | | ?????????????????# ? #?#######???????# #= ! | | ???????????????### # # # #??????# ""# ] | | ???????????????#$#< ? ?????? ## | | ???????????????? ? ????? "" ## ### | | ????????????????##< ## # $ ???? ## "#### # | | ???????????????## ;;;;;##???##? ####???## # | | ???????????????# ##??? #?????# # | | ????????????????# ; #??# #???#### # | | ??????????????????#; R #### ##### # # # | | ????????????????###; & ## ## ## # | | ????????????????# &%! #?## ## ## | | ?????????????????## [ ### ####? | | ?????????????????# # @ ### #??? | | ?????????????????######## ##??? | | ???????????????????????# ### ##??? | | ??????????????????????## #?#### ###? | | ?????????????????????## ##???## #? | | ?????????????????????# ###??# #? | | ?????????????????????## "" * ##?#### ###? | | ??????????????????????##""" #???## #??? | | ???????????????????????#### #???# ##??? | | ??????????????????????????## ###???# #??? | | ???????????????????????????# #?????## #??? | | ???????????????????????????# ####### #??? | | ???????????????????????????### ### ##??? | | ?????????????????????????????#### ## #???? | | ?????????????????????####??????## ###### ##??? | | ??????????????????? ##### ##???# ##?? | | ??????????????????? ###?## #?? | | ?????????????????????????## ### ##?? | | ??????????????????????????## ## # ##??? | | ???????????????????????????# ?## ##???? | | ??????????????????????????# ???### #????? | | ??????????????????????????# ??????## ## #????? | | ??????????????????????????#????????##### #????? | | ???????????????????????????????????????## #????? | | ????????????????????????????????????????## ##????? | +----------------------------------------------------+ Best States ------------- Heat Dissipation 25 Energy Generation 18 Energy Capacity 250 Matter Stores 300 Matter Capacity 300 Sight Range 16 Terrain Scan Density 10 ECM Strength 1 Evasion (%) 50 Recoil Reduction 2 Item Schematics ----------------- None Robot Schematics ------------------ None Fabricated ------------ Nothing Alien Tech Used ----------------- None Achievements -------------- I Survived The Infestation Challenges ------------ None Game ------ Seed TripodRegenerativeLoader Manual? 0 Play Time 00:20:38 Cumulative 4.7 hours Start 2024.04.05 @ 23:42:30 End 2024.04.06 @ 00:01:49 Sessions 1 Manual Loads 0 Difficulty Rogue Special Mode None Game No. 11 Rogue 11 Adventurer 0 Explorer 0 Win Type - Total 0 Types 0/0/0/0/0/0/0/0/0 Lore% 4 Gallery% 11 Achievement% 9 Wizard Run 0 Options --------- Layout 1 ASCII 0 Keyboard 1 Movement Arrows Keybinds 0 Fullscreen 1 Font 24/Smallcaps Map View 50x35 Zoom Use 0% Tactical HUD 0 Map Filters NONE Filters NONE Steam 1 RUN: e855b8fd-b26f-4e1c-a1af-070d5cee8d86